bitfinex-derivatives/quotes_ETHF0:USTF0_20251223
["timestamp","ask_amount","ask_price","bid_price","bid_amount"]
[1766472151389,1.46688254,2960.3,2958.6,0.00281215]
[1766472151589,1.46688254,2959.3,2958.6,0.00281215]
[1766472151798,4.84788254,2959.3,2958.6,0.00281215]
[1766472151996,3.381,2959.3,2957.2,0.44617743]
[1766472152197,11.835,2959.3,2957.3,11.835]
[1766472152388,0.00507142,2958.6,2957.4,3.381]
[1766472152588,3.381,2958.5,2957.4,3.381]
[1766472152895,3.381,2958.5,2957.7,1.46688254]
[1766472153095,3.38503194,2958.5,2957.9,1.46688254]
[1766472153292,0.00403194,2958.5,2957.9,1.46688254]
[1766472153695,0.00403194,2958.5,2957.9,1.47195396]
[1766472153894,0.00403194,2958.5,2957.9,0.00507142]
[1766472154994,0.00507142,2958.6,2957.9,0.00507142]
[1766472155596,3.415,2958.5,2957.7,0.00285662]
[1766472155794,3.415,2958.5,2957.2,3.381]
[1766472156000,3.415,2958.5,2957.3,3.381]
[1766472156598,3.415,2958.5,2957.6,0.00507142]
[1766472156798,3.41848446,2958.5,2957.6,0.00851428]
[1766472157488,3.41848446,2958.5,2957.7,3.381]
[1766472157689,2.26418889,2960.3,2958.4,2.26418889]
[1766472157890,0.16904,2959.9,2958.5,3.381]
[1766472158097,11.837,2959.8,2958.5,3.381]
[1766472158601,0.00507142,2959.4,2958.9,0.00507142]
[1766472158805,3.38707142,2959.4,2958.9,0.00507142]
[1766472160790,0.00507142,2959.4,2958.9,0.00507142]
[1766472160997,0.00507142,2959.4,2959.0,3.381]
[1766472161196,0.00427512,2959.8,2959.0,7.188]
[1766472161694,3.381,2960.3,2959.0,7.188]
[1766472162201,0.00507142,2959.9,2959.0,7.188]
[1766472162800,0.00816291,2959.9,2959.0,7.188]
[1766472163301,0.00816291,2959.9,2958.9,0.00507142]
[1766472163500,0.00816291,2959.9,2959.0,0.479]
[1766472163806,0.00816291,2959.9,2959.0,3.86]
[1766472165006,0.00816291,2959.9,2959.1,9.674]
[1766472165502,0.00816291,2959.9,2959.1,6.293]
[1766472165805,0.00816291,2959.9,2959.1,3.381]
[1766472168312,3.55,2960.6,2959.1,3.381]
[1766472169307,3.55328405,2960.6,2959.1,3.381]
[1766472171113,3.55328405,2960.6,2959.2,9.018]
[1766472171313,3.55328405,2960.6,2959.3,3.381]
[1766472173717,3.55328405,2960.6,2958.9,0.00507142]
[1766472173917,3.55328405,2960.6,2959.0,6.733]
[1766472174707,0.00328405,2960.6,2959.6,2.56549601]
[1766472175015,0.00328405,2960.6,2959.5,3.718]
[1766472175315,0.00328405,2960.6,2959.6,3.38]
[1766472177421,2.56878006,2960.6,2958.9,0.00507142]
[1766472177614,2.73778006,2960.6,2959.0,3.38]
[1766472178517,0.17228405,2960.6,2959.0,3.38]
[1766472181329,0.00328405,2960.6,2959.6,2.56549601]
[1766472181626,0.00328405,2960.6,2959.7,9.667]
[1766472181826,0.00328405,2960.6,2959.8,7.935]
[1766472185029,3.38,2960.8,2959.8,7.935]
[1766472185521,3.38,2960.8,2959.7,0.00262295]
[1766472185914,3.38382509,2960.8,2959.8,3.38]
[1766472188525,3.38382509,2960.8,2959.7,3.38262295]
[1766472189327,3.38382509,2960.8,2959.7,0.00262295]
[1766472189328,0.16899,2960.7,2959.7,0.00262295]
[1766472195124,0.00382509,2960.8,2959.7,0.00262295]
[1766472195330,3.38,2960.7,2959.8,3.38]
[1766472195530,3.38,2960.7,2959.7,0.00262295]
[1766472196035,3.38,2960.7,2959.8,3.38]
[1766472197630,3.38,2960.7,2959.7,0.00262295]
[1766472197836,3.38,2960.7,2959.8,3.38]
[1766472198030,3.38,2960.7,2959.7,3.38262295]
[1766472200240,3.38,2960.6,2959.7,0.00262295]
[1766472201141,3.38388617,2960.6,2959.7,0.00262295]
[1766472215953,3.38388617,2960.6,2959.8,3.38]
[1766472218945,3.38388617,2960.6,2959.8,4.84561396]
[1766472219250,0.00388617,2960.6,2960.0,1.46561396]
[1766472219443,0.00388617,2960.6,2960.1,3.38]
[1766472220053,0.00388617,2960.6,2960.1,4.84537208]
[1766472220651,0.00388617,2960.6,2960.1,3.38]
[1766472220844,0.00388617,2960.6,2959.8,1.46537208]
[1766472221153,0.00388617,2960.6,2960.0,1.46537208]
[1766472221546,0.00388617,2960.6,2960.1,3.38]
[1766472222259,3.38,2960.9,2960.2,1.46537208]
[1766472222653,3.38,2960.9,2960.0,1.46537208]
[1766472222863,3.38,2960.9,2960.1,3.38]
[1766472223157,4.84894825,2960.9,2960.1,3.38]
[1766472223453,3.38357617,2960.9,2960.1,3.38]
[1766472223658,3.38357617,2960.9,2959.9,1.46537208]
[1766472223854,3.38357617,2960.9,2960.0,3.38]
[1766472224251,3.38357617,2960.9,2960.1,1.46537208]
[1766472224452,3.38357617,2960.9,2960.0,4.84537208]
[1766472225954,3.38357617,2960.9,2959.7,0.00262295]
[1766472226143,3.38357617,2960.9,2959.9,1.46537208]
[1766472226342,1.46537208,2960.8,2960.0,3.379]
[1766472226757,1.46537208,2960.8,2959.8,1.46537208]
[1766472226959,1.46537208,2960.8,2959.9,3.379]
[1766472227555,3.38357617,2960.9,2959.9,3.379]
[1766472229762,1.46537208,2960.8,2959.9,3.379]
[1766472230164,1.46537208,2960.6,2959.9,3.379]
[1766472230360,1.46537208,2960.6,2959.7,0.00262295]
[1766472230361,1.46537208,2960.4,2959.7,0.00262295]
[1766472230556,4.84437208,2960.6,2959.8,3.379]
[1766472232362,3.379,2960.6,2959.8,3.379]
[1766472232562,1.46537208,2960.5,2959.8,3.379]
[1766472234657,1.46537208,2960.5,2959.7,3.38162295]
[1766472237869,3.379,2960.6,2959.7,3.38162295]
[1766472238062,4.84437208,2960.6,2959.7,3.38162295]
[1766472239067,0.17256617,2960.9,2960.1,1.46537208]
[1766472239363,0.17256617,2960.9,2960.1,4.84437208]
[1766472240256,0.00357617,2960.9,2960.1,4.84437208]
[1766472247066,1.46894825,2960.9,2960.1,3.379]
[1766472247979,0.00357617,2960.9,2960.1,3.379]
[1766472250273,0.00357617,2960.9,2960.2,1.46537208]
[1766472250673,1.46537208,2961.9,2960.8,1.46537208]
[1766472250878,1.46537208,2961.7,2960.5,1.46537208]
[1766472251082,1.46537208,2961.5,2960.6,3.379]
[1766472251374,4.84437208,2961.6,2960.6,3.379]
[1766472251566,1.46537208,2961.4,2960.6,3.379]
[1766472251967,0.00507142,2961.3,2960.7,0.00507142]
[1766472252370,0.00507142,2961.3,2959.4,40.8]
[1766472252371,1.46537208,2961.0,2959.9,1.46537208]
[1766472252577,1.46537208,2961.0,2960.0,3.379]
[1766472253272,1.46537208,2960.8,2960.2,0.00507142]
[1766472254077,5.876,2960.8,2959.0,8.449]
[1766472254279,1.46537208,2960.4,2959.7,3.38162295]
[1766472254477,3.379,2960.5,2959.7,3.38162295]
[1766472255081,3.379,2960.5,2959.8,0.00507142]
[1766472259486,1.46537208,2960.1,2959.3,3.379]
[1766472260478,1.46537208,2960.1,2959.4,0.00507142]
[1766472262082,3.379,2960.2,2959.4,0.00507142]
[1766472263388,3.379,2960.6,2959.7,1.46537208]
[1766472263783,3.379,2960.6,2959.7,3.379]
[1766472264380,1.46537208,2960.5,2959.4,0.00507142]
[1766472264580,1.46537208,2960.5,2959.5,3.379]
[1766472265486,1.46537208,2960.5,2959.4,1.4704435]
[1766472265487,1.46537208,2960.5,2959.6,3.38]
[1766472268488,1.46537208,2960.5,2959.4,1.4704435]
[1766472268699,1.46537208,2960.5,2959.5,3.38]
[1766472272201,1.46537208,2960.3,2959.4,0.00507142]
[1766472272397,3.38,2960.2,2959.5,3.38]
[1766472279491,3.38,2960.2,2959.4,0.00507142]
[1766472279697,3.38,2960.2,2959.5,3.38]
[1766472281800,2.9866,2960.2,2959.5,4.84607819]
[1766472282100,3.38,2960.3,2959.5,4.84607819]
[1766472284200,3.38,2960.3,2959.5,3.38]
[1766472285302,9.42502,2960.3,2959.4,0.00507142]
[1766472285509,10.89109819,2960.3,2959.4,0.00507142]
[1766472286008,9.42502,2960.3,2959.4,0.00507142]
[1766472289611,1.46607819,2960.1,2959.4,0.00507142]
[1766472289806,3.38,2960.0,2959.3,0.00372384]
[1766472290006,3.38,2960.0,2959.2,3.38]
[1766472290712,3.38,2960.0,2959.3,0.00507142]
[1766472290911,3.38,2960.0,2959.3,0.00834179]
[1766472292399,1.46607819,2959.7,2958.0,0.16915]
[1766472292604,3.38,2959.6,2958.2,1.46607819]
[1766472292806,3.38,2959.6,2958.3,9.641]
[1766472293002,1.46607819,2959.5,2957.8,3.56475454]
[1766472293214,1.46607819,2959.3,2957.9,11.10707819]
[1766472293508,0.00507142,2958.9,2958.3,0.00338096]
[1766472293711,1.47114961,2958.9,2958.3,0.00338096]
[1766472294011,1.47114961,2958.9,2957.9,0.00245013]
[1766472294012,1.47114961,2958.9,2958.0,3.38]
[1766472295010,0.00507142,2958.9,2958.0,3.38]
[1766472300122,0.00507142,2958.9,2958.1,3.381]
[1766472303716,1.47114961,2958.9,2958.1,3.381]
[1766472305021,0.00507142,2958.9,2958.1,3.381]
[1766472308117,3.38607142,2958.9,2958.1,3.381]
[1766472308320,0.00507142,2958.9,2958.1,3.381]
[1766472308531,3.38607142,2958.9,2958.1,3.381]
[1766472311432,4.85214961,2958.9,2958.1,3.381]
[1766472311929,4.85214961,2958.9,2957.9,0.00245013]
[1766472312131,4.85214961,2958.9,2958.0,3.381]
[1766472318637,3.38607142,2958.9,2958.0,3.381]
[1766472333746,3.38607142,2958.9,2958.1,3.381]
[1766472338443,3.381,2958.8,2958.1,3.381]
[1766472341846,0.00401303,2959.3,2958.2,1.46607819]
[1766472342048,3.381,2959.9,2959.2,1.46634917]
[1766472342552,1.46634917,2959.8,2958.2,1.46634917]
[1766472342754,1.46634917,2959.8,2958.8,1.46634917]
[1766472342948,0.00507142,2959.6,2959.0,0.00507142]
[1766472345057,1.46634917,2959.5,2959.0,0.00507142]
[1766472345555,3.38607142,2959.6,2959.0,0.00507142]
[1766472345953,0.00507142,2959.6,2959.1,3.381]
[1766472346150,3.38538342,2959.8,2959.1,3.381]
[1766472346352,3.38538342,2959.8,2959.1,4.84734917]
[1766472347155,0.00507142,2959.7,2959.1,4.84734917]
[1766472347742,0.16902,2960.2,2959.1,4.84734917]
[1766472347947,0.16902,2960.2,2959.3,1.46634917]
[1766472348247,3.55002,2960.2,2959.4,3.381]
[1766472348747,0.00507142,2960.1,2959.4,3.381]
[1766472348953,0.00507142,2960.1,2959.5,1.46634917]
[1766472349353,0.16898,2961.0,2959.7,1.46634917]
[1766472349550,1.46634917,2960.4,2959.5,1.323]
[1766472349855,1.46634917,2960.4,2959.6,3.381]
[1766472350047,3.381,2960.5,2959.4,3.381]
[1766472350048,1.46634917,2960.0,2959.4,3.381]
[1766472350248,0.0078628,2960.0,2959.4,3.381]
[1766472350848,0.0078628,2960.0,2959.5,1.46634917]
[1766472351154,0.0078628,2960.0,2959.4,3.381]
[1766472351155,1.46634917,2960.8,2959.7,1.46634917]
[1766472351344,3.381,2960.7,2959.9,1.46634917]
[1766472351549,3.381,2960.7,2959.7,3.381]
[1766472351550,3.381,2960.6,2959.7,4.84734917]
[1766472351950,0.00507142,2960.4,2959.7,4.84734917]
[1766472352351,0.00507142,2960.4,2959.9,1.46634917]
[1766472353259,0.00316213,2960.6,2960.0,3.38]
[1766472353457,0.00316213,2960.6,2960.0,3.38343886]
[1766472354151,0.00654309,2960.6,2960.0,3.38343886]
[1766472354959,0.00654309,2960.6,2960.0,0.00343886]
[1766472355459,1.47289226,2960.6,2960.0,0.00343886]
[1766472355955,1.46634917,2960.1,2959.1,3.38]
[1766472356154,3.38,2960.0,2959.1,3.38]
[1766472356859,3.38,2960.0,2959.2,1.46634917]
[1766472357563,3.38,2960.2,2959.6,1.46634917]
[1766472358464,3.38,2960.2,2959.5,4.84634917]
[1766472359466,3.38,2960.2,2959.5,3.38]
[1766472360765,4.84634917,2960.2,2959.5,3.38]
[1766472360969,4.84634917,2960.2,2959.1,1.47056588]
[1766472361266,4.84634917,2960.2,2959.2,3.38]
[1766472362966,4.84634917,2960.2,2959.1,1.47056588]
[1766472363267,4.84634917,2960.2,2959.2,3.38]
[1766472364464,1.46634917,2960.0,2959.1,0.00421671]
[1766472364660,1.46634917,2960.0,2959.2,3.38]
[1766472364969,3.38,2960.2,2959.2,3.38]
[1766472365162,1.46634917,2960.0,2959.2,3.38]
[1766472367365,1.46634917,2960.0,2959.1,0.00421671]
[1766472367562,1.46634917,2959.8,2959.1,0.00421671]
[1766472367768,1.46634917,2959.2,2958.7,3.38]
[1766472368065,1.46634917,2959.2,2957.5,4.66663797]
[1766472368066,1.46634917,2959.2,2958.3,4.763]
[1766472368269,1.46634917,2959.2,2958.4,3.38]
[1766472368664,0.00507142,2959.1,2958.5,0.00507142]
[1766472369265,1.47142059,2959.1,2958.6,3.38]
[1766472369864,0.00507142,2959.1,2958.6,3.38]
[1766472370869,0.00507142,2959.1,2958.5,0.00507142]
[1766472371269,0.00507142,2959.1,2958.6,3.38]
[1766472375276,4.84634917,2959.4,2958.6,3.38]
[1766472376174,0.00338096,2959.3,2958.6,3.38]
[1766472381671,0.00338096,2959.3,2958.7,1.46634917]
[1766472381879,0.00338096,2959.3,2958.6,3.38]
[1766472388984,1.46634917,2959.0,2958.6,3.38]
[1766472389286,1.46634917,2959.1,2958.6,3.38]
[1766472389885,0.00338096,2959.3,2958.6,3.38]
[1766472390084,1.46634917,2959.2,2958.6,3.38]
[1766472391287,0.00338096,2959.3,2958.6,3.38]
[1766472394988,1.46634917,2959.2,2958.6,3.38]
[1766472395390,0.00338096,2959.3,2958.6,3.38]
[1766472395591,3.381,2959.1,2958.6,3.38]
[1766472396987,3.381,2959.1,2958.5,0.00507142]
[1766472396988,1.46634917,2959.0,2958.5,0.00507142]
[1766472397194,1.46634917,2958.8,2958.5,0.00507142]
[1766472397595,1.46634917,2958.8,2958.2,3.381]
[1766472398492,1.46634917,2958.8,2958.2,3.38909363]
[1766472399486,3.381,2958.8,2958.2,3.38909363]
[1766472400997,1.3866,2958.8,2958.2,3.38909363]
[1766472401197,1.0717,2958.8,2958.2,3.38909363]
[1766472402199,0.56,2958.8,2958.2,3.38909363]
[1766472402397,0.1664,2958.8,2958.2,3.38909363]
[1766472406602,3.381,2958.9,2958.2,3.38909363]
[1766472417607,3.381,2958.9,2958.2,0.00809363]
[1766472417913,4.84833822,2958.9,2958.2,0.00809363]
[1766472420318,3.381,2958.9,2958.2,0.00809363]
[1766472432732,2.381,2958.9,2958.2,0.00809363]
[1766472433824,3.84833822,2958.9,2958.2,0.00809363]
[1766472436328,8.259,2958.9,2958.2,0.00809363]
[1766472437627,9.72633822,2958.9,2958.2,0.00809363]
[1766472441537,9.72633822,2958.9,2957.6,3.381]
[1766472441733,1.46733822,2958.1,2957.3,3.381]
[1766472441928,3.381,2958.0,2957.3,3.381]
[1766472442739,3.38454676,2958.0,2957.4,0.00507142]
[1766472443736,3.38554676,2958.0,2957.4,0.00507142]
[1766472444137,5.878,2958.7,2957.5,1.46733822]
[1766472444342,3.382,2958.5,2957.6,3.382]
[1766472444735,4.84933822,2958.5,2957.6,3.382]
[1766472445241,3.3853452,2958.5,2957.6,3.382]
[1766472447634,1.46733822,2958.0,2957.4,0.00507142]
[1766472447847,3.382,2958.0,2957.4,0.00507142]
[1766472449139,3.382,2958.0,2957.3,0.00356074]
[1766472450045,3.382,2958.0,2957.4,0.00507142]
[1766472452347,3.382,2958.0,2957.3,0.00356074]
[1766472452543,4.84933822,2958.0,2957.1,3.382]
[1766472453552,4.84933822,2958.0,2957.3,0.00507142]
[1766472453945,4.84933822,2958.0,2957.1,3.3856202]
[1766472454950,4.84933822,2958.0,2957.3,0.00507142]
[1766472455552,4.84933822,2958.0,2957.1,3.3856202]
[1766472457046,3.382,2958.0,2957.1,3.3856202]
[1766472457253,4.84933822,2958.0,2957.1,3.3856202]
[1766472457949,1.46733822,2957.7,2956.7,3.382]
[1766472458149,0.00507142,2957.5,2956.7,3.382]
[1766472458451,1.47240964,2957.5,2956.3,9.612]
[1766472458845,1.47240964,2957.5,2956.3,9.61605999]
[1766472459351,0.00507142,2957.5,2956.3,11.08339821]
[1766472459553,0.00507142,2957.5,2956.8,1.46733822]
[1766472459752,0.00507142,2957.5,2956.8,4.84933822]
[1766472460845,0.00507142,2957.5,2956.8,3.382]
[1766472463954,0.00507142,2957.5,2956.8,4.85060879]
[1766472464855,0.00507142,2957.5,2956.8,3.382]
[1766472465950,0.00507142,2957.5,2956.7,3.382]
[1766472469158,1.46860879,2957.4,2956.7,3.382]
[1766472470359,0.00507142,2957.5,2956.7,3.382]
[1766472476460,0.00507142,2957.5,2956.3,0.00405999]
[1766472476666,1.46860879,2956.6,2955.8,3.383]
[1766472476867,4.85160879,2956.6,2955.8,3.383]
[1766472477563,4.85160879,2956.6,2955.8,3.38607044]
[1766472478165,3.383,2956.6,2955.8,3.38607044]
[1766472478360,4.85160879,2956.6,2955.8,3.38607044]
[1766472479055,0.16919,2957.2,2956.3,1.46860879]
[1766472479260,3.383,2957.1,2956.3,1.46860879]
[1766472480065,3.383,2957.1,2956.2,3.383]
[1766472480467,1.46860879,2957.0,2956.1,1.46860879]
[1766472480673,1.46860879,2957.0,2956.2,3.383]
[1766472481568,1.46860879,2957.0,2955.9,1.46860879]
[1766472481866,1.46860879,2956.6,2955.8,0.00307044]
[1766472482064,1.46860879,2956.4,2955.8,0.00307044]
[1766472482262,1.46860879,2956.2,2955.8,0.00307044]
[1766472482661,1.46860879,2956.2,2955.4,3.383]
[1766472482856,3.383,2956.3,2955.4,3.383]
[1766472483069,3.383,2956.3,2955.5,1.46860879]
[1766472483568,0.00306351,2956.4,2955.7,1.46860879]
[1766472483763,3.383,2956.8,2956.1,1.46860879]
[1766472484167,3.383,2956.8,2955.9,1.46860879]
[1766472484371,1.46860879,2956.7,2955.5,1.47145523]
[1766472484562,1.46860879,2956.5,2955.6,3.383]
[1766472484764,3.383,2956.4,2955.6,3.383]
[1766472485875,1.46860879,2956.3,2955.5,3.38584644]
[1766472488577,1.46860879,2955.9,2955.5,0.00284644]
[1766472488769,3.384,2955.9,2955.5,0.00284644]
[1766472489271,4.85260879,2955.9,2955.5,0.00284644]
[1766472489473,3.384,2955.9,2955.5,0.00284644]
[1766472489672,0.00507142,2956.0,2955.5,0.00284644]
[1766472489872,3.384,2955.9,2955.5,0.00284644]
[1766472493767,1.46860879,2955.6,2955.0,3.384]
[1766472494074,3.384,2955.6,2955.0,3.384]
[1766472494576,4.85260879,2955.6,2955.0,3.384]
[1766472494979,4.85260879,2955.6,2955.0,3.38668565]
[1766472495278,3.384,2955.6,2955.0,3.38668565]
[1766472497072,1.47368021,2956.0,2955.0,3.38668565]
[1766472497273,9.266,2955.9,2955.0,3.38668565]
[1766472498386,1.46860879,2955.6,2955.0,3.38668565]
[1766472498576,3.384,2955.5,2955.0,3.38668565]
[1766472498772,2.754,2955.5,2955.0,3.38668565]
[1766472498977,2.6358,2955.5,2955.0,3.38668565]
[1766472501982,0.00507142,2956.0,2955.0,3.38668565]
[1766472502285,3.384,2955.9,2955.1,1.46860879]
[1766472503075,0.00507142,2956.0,2955.1,1.46860879]
[1766472503274,0.00507142,2956.0,2955.3,1.46860879]
[1766472503478,3.385,2955.9,2955.3,1.46860879]
[1766472503679,3.385,2955.9,2955.1,1.46860879]
[1766472504482,3.385,2955.9,2955.3,1.46860879]
[1766472504676,3.385,2955.9,2955.1,1.46860879]
[1766472507092,3.385,2955.9,2955.0,3.38668565]
[1766472507590,3.385,2955.9,2955.1,1.46860879]
[1766472508589,1.46860879,2955.5,2953.5,3.385]
[1766472508786,3.385,2955.6,2954.5,1.46860879]
[1766472508979,3.385,2955.6,2954.7,1.46860879]
[1766472509191,3.385,2955.6,2954.8,3.385]
[1766472509786,3.385,2955.6,2954.8,3.38927718]
[1766472511481,0.17433142,2956.0,2955.1,1.46860879]
[1766472511685,3.385,2955.9,2955.1,1.46860879]
[1766472512690,3.385,2955.9,2954.8,3.38927718]
[1766472512895,3.385,2955.9,2955.0,1.46860879]
[1766472513593,3.385,2955.9,2955.1,3.385]
[1766472518096,0.00507142,2956.0,2955.6,1.46860879]
[1766472519793,0.00507142,2956.0,2955.5,3.385]
[1766472519995,0.00507142,2956.0,2955.5,4.85360879]
[1766472525906,0.00507142,2956.0,2955.5,3.385]
[1766472526507,0.00507142,2956.0,2955.1,1.47008928]
[1766472526707,0.00507142,2956.0,2955.2,3.385]
[1766472527903,0.00298839,2956.5,2955.7,1.47008928]
[1766472528204,0.00298839,2956.5,2955.7,3.385]
[1766472528406,3.38798839,2956.5,2955.5,1.47008928]
[1766472528706,3.38798839,2956.5,2955.4,4.85508928]
[1766472528906,0.00507142,2956.2,2955.7,0.00507142]
[1766472529207,0.00507142,2956.2,2955.7,3.39007142]
[1766472532912,3.38798839,2956.5,2955.7,4.8601607]
[1766472533116,3.38798839,2956.5,2955.7,3.39007142]
[1766472533407,3.38798839,2956.5,2955.7,4.8601607]
[1766472534006,0.00507142,2956.4,2955.7,4.8601607]
[1766472535713,0.00298839,2956.5,2956.0,1.47008928]
[1766472535912,3.384,2956.8,2956.0,4.85408928]
[1766472536507,5.635,2957.0,2956.3,1.47008928]
[1766472536707,0.00507142,2956.9,2956.4,3.384]
[1766472537015,0.0085551,2956.9,2956.4,3.384]
[1766472537521,0.16912,2958.1,2956.8,1.47008928]
[1766472537702,3.384,2958.0,2957.1,1.47008928]
[1766472538111,3.384,2958.0,2956.9,3.384]
[1766472538817,0.00507142,2957.7,2957.0,3.384]
[1766472539112,1.47008928,2957.2,2956.4,3.384]
[1766472539313,3.384,2957.1,2956.3,3.384]
[1766472539513,3.384,2957.1,2956.4,3.384]
[1766472539814,3.384,2957.1,2956.5,0.00507142]
[1766472540113,3.384,2957.1,2956.5,0.00935863]
[1766472541809,3.384,2957.1,2955.5,1.47008928]
[1766472542109,3.384,2957.1,2955.6,3.384]
[1766472542110,1.47008928,2956.7,2955.6,3.384]
[1766472542303,4.85408928,2956.7,2955.6,3.384]
[1766472542506,3.384,2956.7,2955.5,1.47008928]
[1766472542705,3.384,2956.7,2955.6,3.384]
[1766472542908,3.384,2956.7,2955.9,0.00507142]
[1766472543106,3.384,2956.7,2955.9,3.38907142]
[1766472545217,3.384,2957.0,2955.9,4.8591607]
[1766472545410,3.384,2957.0,2956.0,3.384]
[1766472545812,1.47008928,2956.9,2955.9,0.00507142]
[1766472546013,3.384,2957.0,2955.9,3.38907142]
[1766472552823,3.384,2957.0,2955.9,0.00507142]
[1766472553425,3.384,2957.0,2955.9,3.38907142]
[1766472554325,3.384,2957.0,2955.6,0.00367804]
[1766472554326,2.57034865,2956.7,2955.7,3.384]
[1766472554527,3.384,2956.6,2955.7,3.384]
[1766472555327,3.384,2956.6,2955.9,0.00507142]
[1766472565938,4.85405366,2956.6,2955.9,0.00507142]
[1766472566642,4.85405366,2956.6,2955.6,3.38767804]
[1766472576438,4.85405366,2956.6,2955.6,0.00367804]
[1766472576646,4.85405366,2956.6,2955.6,3.38767804]
[1766472579049,4.85405366,2956.6,2955.6,0.00367804]
[1766472579346,4.85405366,2956.6,2955.6,3.38767804]
[1766472586353,3.384,2956.6,2955.8,1.47005366]
[1766472586552,3.384,2956.6,2955.7,1.47005366]
[1766472587658,3.384,2956.6,2956.0,1.47005366]
[1766472587957,3.384,2956.6,2956.0,3.384]
[1766472588253,4.85372686,2956.6,2956.0,3.384]
[1766472588956,3.384,2956.6,2956.0,3.384]
[1766472589156,3.384,2956.6,2955.6,1.4734049]
[1766472589358,3.384,2956.6,2955.8,1.46972686]
[1766472589552,3.384,2956.6,2956.2,1.46972686]
[1766472589960,3.384,2956.9,2956.4,1.46972686]
[1766472590153,3.384,2956.9,2956.3,3.384]
[1766472594364,3.384,2956.9,2956.3,4.85372686]
[1766472599667,3.384,2956.9,2956.3,3.384]
[1766472599961,3.384,2956.9,2956.1,1.46972686]
[1766472600156,3.384,2956.9,2956.3,3.384]
[1766472602166,3.384,2956.9,2956.1,1.46972686]
[1766472602366,3.384,2956.9,2956.3,1.46972686]
[1766472602666,3.384,2956.9,2956.5,1.46972686]
[1766472602866,3.384,2956.9,2956.3,3.384]
[1766472602867,3.384,2956.9,2956.3,4.85372686]
[1766472603457,3.384,2956.9,2956.3,3.384]
[1766472604169,3.384,2956.9,2956.3,4.85372686]
[1766472605167,3.384,2956.9,2956.3,1.46972686]
[1766472605466,3.384,2956.9,2956.3,4.85372686]
[1766472606461,4.536,2957.1,2956.8,1.46972686]
[1766472606655,3.384,2957.2,2956.8,1.46972686]
[1766472607959,3.384,2957.2,2956.6,4.85372686]
[1766472609867,3.384,2957.2,2956.8,1.46972686]
[1766472610764,3.384,2957.2,2956.6,4.85372686]
[1766472612470,3.384,2957.2,2956.8,1.46972686]
[1766472612970,0.16916,2957.4,2956.8,1.46972686]
[1766472613170,3.383,2957.8,2957.3,1.46972686]
[1766472613370,2.71851982,2957.8,2957.5,1.46972686]
[1766472613565,2.71851982,2957.8,2957.3,1.46972686]
[1766472614257,2.72359124,2957.8,2957.3,1.47479828]
[1766472617269,0.00507142,2957.8,2957.5,1.46972686]
[1766472617573,0.00507142,2957.8,2957.5,4.85272686]
[1766472618572,3.383,2958.3,2957.7,1.46972686]
[1766472618766,3.383,2958.3,2957.7,0.00358799]
[1766472618963,8.458,2959.1,2957.8,1.46972686]
[1766472619164,3.383,2959.0,2958.3,1.46972686]
[1766472619370,0.00507142,2958.9,2958.4,0.00507142]
[1766472619967,0.16902,2960.0,2958.4,0.00507142]
[1766472620172,1.46972686,2959.6,2958.5,1.46972686]
[1766472620474,1.46972686,2959.2,2958.4,0.00507142]
[1766472620670,6.755,2959.5,2958.6,1.46972686]
[1766472620875,3.383,2959.5,2959.0,1.46972686]
[1766472621077,0.00881658,2959.5,2959.2,1.46972686]
[1766472621272,3.383,2960.1,2959.4,1.46972686]
[1766472621579,3.383,2960.1,2959.5,3.383]
[1766472621871,3.383,2960.1,2958.4,0.00507142]
[1766472622079,3.383,2960.1,2958.5,4.226]
[1766472622080,1.46972686,2959.4,2958.5,4.226]
[1766472622375,0.00507142,2959.2,2958.7,1.46972686]
[1766472622676,0.00507142,2959.2,2958.8,3.383]
[1766472622866,0.00507142,2959.2,2958.9,3.382]
[1766472623269,1.46972686,2959.0,2958.4,0.00507142]
[1766472623465,1.47479828,2959.2,2958.4,2.72259148]
[1766472623680,0.00507142,2959.2,2958.4,4.19231834]
[1766472623980,0.00507142,2959.2,2958.4,2.72259148]
[1766472624476,0.00507142,2959.2,2958.5,0.00507142]
[1766472624772,1.46972686,2959.1,2958.3,3.382]
[1766472624977,4.85172686,2959.1,2958.3,3.382]
[1766472625181,3.382,2959.1,2958.3,3.382]
[1766472625978,3.382,2959.1,2958.2,3.382]
[1766472626278,3.382,2959.1,2957.8,3.382]
[1766472626679,0.16908,2959.0,2957.8,3.382]
[1766472627179,0.16908,2959.0,2958.1,0.00507142]
[1766472627678,0.16908,2959.0,2958.2,3.382]
[1766472629881,3.382,2959.1,2958.2,3.382]
[1766472630076,0.00507142,2959.2,2958.2,3.382]
[1766472634176,0.0031379,2959.4,2958.2,3.382]
[1766472634579,0.0031379,2959.4,2958.4,2.26420262]
[1766472634788,17.88303,2959.8,2958.5,7.502]
[1766472634987,0.00507142,2959.4,2958.5,7.502]
[1766472635286,3.55103,2959.8,2958.7,2.26420262]
[1766472635482,3.382,2960.1,2959.0,2.26420262]
[1766472635681,3.38580398,2960.1,2958.3,2.26420262]
[1766472635881,3.55481398,2960.1,2958.4,1.297]
[1766472636088,0.00507142,2959.5,2958.3,2.26420262]
[1766472636290,0.00507142,2959.5,2958.4,5.42]
[1766472638793,0.00507142,2959.5,2958.5,6.193]
[1766472638991,0.00507142,2959.5,2958.5,9.574]
[1766472639190,0.00507142,2959.5,2958.6,6.193]
[1766472639391,0.00507142,2959.5,2958.6,9.574]
[1766472643681,0.00507142,2959.5,2958.7,9.572]
[1766472644087,0.00507142,2959.5,2958.8,9.572]
[1766472644395,0.00507142,2959.5,2958.9,3.381]
[1766472647993,0.00507142,2959.5,2958.9,4.84747597]
[1766472648289,3.381,2959.8,2958.9,4.84747597]
[1766472649095,0.00507142,2959.6,2958.9,4.84747597]